[Event "*** Titled Tuesday 3|2 Blitz"]
[Site "Chess.com"]
[Date "2016.06.07"]
[Round "3"]
[White "bugsbunny444"]
[Black "Noukii"]
[Result "0-1"]
[WhiteElo "2359"]
[BlackElo "2635"]
[TimeControl "180+2"]
[EndTime "17:34:19 PDT"]
[Termination "Noukii won on time"]

1. Nf3 {[%clk 0:03:01.9]} 1... d5 {[%clk 0:03:01.2]} 2. c4 {[%clk 0:03:00.7]}
2... c6 {[%clk 0:03:02.4]} 3. g3 {[%clk 0:03:01.3]} 3... Nf6 {[%clk 0:03:04]} 4.
Bg2 {[%clk 0:03:02]} 4... g6 {[%clk 0:03:00.3]} 5. Qa4 {[%clk 0:02:59.9]} 5...
Bg7 {[%clk 0:03:00.2]} 6. cxd5 {[%clk 0:03:00.8]} 6... Nxd5 {[%clk 0:03:02.1]}
7. d4 {[%clk 0:03:01.9]} 7... O-O {[%clk 0:03:02.9]} 8. O-O {[%clk 0:03:02.5]}
8... Bg4 {[%clk 0:02:58.4]} 9. Rd1 {[%clk 0:02:59.8]} 9... Nd7 {[%clk
0:02:54.5]} 10. e4 {[%clk 0:02:50.2]} 10... N5b6 {[%clk 0:02:55.6]} 11. Qc2
{[%clk 0:02:49.4]} 11... e5 {[%clk 0:02:45.4]} 12. dxe5 {[%clk 0:02:40.2]} 12...
Qe7 {[%clk 0:02:23.1]} 13. Bg5 {[%clk 0:02:24.2]} 13... Qe8 {[%clk 0:02:24.3]}
14. h3 {[%clk 0:01:54.7]} 14... Bxf3 {[%clk 0:02:23.7]} 15. Bxf3 {[%clk
0:01:56.6]} 15... Qxe5 {[%clk 0:02:25.3]} 16. Bc1 {[%clk 0:01:50.7]} 16... Nc5
{[%clk 0:02:16.5]} 17. Nc3 {[%clk 0:01:26.7]} 17... Rad8 {[%clk 0:02:05.8]} 18.
Bf4 {[%clk 0:01:25]} 18... Qe7 {[%clk 0:02:07]} 19. Bg2 {[%clk 0:01:18]} 19...
Ne6 {[%clk 0:02:07.6]} 20. Be3 {[%clk 0:01:13.2]} 20... Nd4 {[%clk 0:02:02.8]}
21. Bxd4 {[%clk 0:01:05.1]} 21... Bxd4 {[%clk 0:02:00.5]} 22. Kh2 {[%clk
0:01:05.2]} 22... Qc5 {[%clk 0:01:44.2]} 23. f4 {[%clk 0:00:47]} 23... a5 {[%clk
0:01:21.2]} 24. Rac1 {[%clk 0:00:38.7]} 24... Be3 {[%clk 0:01:12.6]} 25. Rxd8
{[%clk 0:00:34]} 25... Rxd8 {[%clk 0:01:14.5]} 26. Rd1 {[%clk 0:00:34.7]} 26...
Rxd1 {[%clk 0:01:15.8]} 27. Qxd1 {[%clk 0:00:35.2]} 27... Bd4 {[%clk 0:01:10.8]}
28. Qb3 {[%clk 0:00:15.1]} 28... Qb4 {[%clk 0:00:48.8]} 29. e5 {[%clk
0:00:10.9]} 29... Qxb3 {[%clk 0:00:46.6]} 30. axb3 {[%clk 0:00:11.8]} 30... Nd7
{[%clk 0:00:48.2]} 31. Be4 {[%clk 0:00:07.9]} 31... Nc5 {[%clk 0:00:44.6]} 32.
Bc2 {[%clk 0:00:09]} 32... b5 {[%clk 0:00:45.3]} 33. Ne4 {[%clk 0:00:08.4]}
33... Ne6 {[%clk 0:00:35.3]} 34. Nc3 {[%clk 0:00:07]} 34... Kf8 {[%clk
0:00:35.4]} 35. Kg2 {[%clk 0:00:07.7]} 35... h5 {[%clk 0:00:30.1]} 36. Be4
{[%clk 0:00:07.9]} 36... b4 {[%clk 0:00:30.2]} 37. Na4 {[%clk 0:00:08.4]} 37...
c5 {[%clk 0:00:29.5]} 38. Bd5 {[%clk 0:00:07]} 38... Ke7 {[%clk 0:00:26.4]} 0-1

[Event "*** Titled Tuesday 3|2 Blitz"]
[Site "Chess.com"]
[Date "2016.06.07"]
[Round "3"]
[White "AllStarShark"]
[Black "twitchTriniCupid"]
[Result "0-1"]
[WhiteElo "2139"]
[BlackElo "2134"]
[TimeControl "180+2"]
[EndTime "17:34:33 PDT"]
[Termination "twitchTriniCupid won by resignation"]

1. d4 {[%clk 0:03:01.9]} 1... c6 {[%clk 0:02:59.9]} 2. c4 {[%clk 0:03:01]} 2...
d6 {[%clk 0:03:00.9]} 3. Nc3 {[%clk 0:03:01.1]} 3... e5 {[%clk 0:02:59]} 4. Nf3
{[%clk 0:02:59.1]} 4... Bg4 {[%clk 0:02:50.5]} 5. e3 {[%clk 0:02:52]} 5... Qc7
{[%clk 0:02:46.3]} 6. Be2 {[%clk 0:02:49.6]} 6... Nd7 {[%clk 0:02:46.3]} 7. b3
{[%clk 0:02:47.4]} 7... Be7 {[%clk 0:02:29.1]} 8. Bb2 {[%clk 0:02:47.2]} 8... a5
{[%clk 0:02:28.5]} 9. Qc2 {[%clk 0:02:40.3]} 9... Ngf6 {[%clk 0:02:24.9]} 10.
Rd1 {[%clk 0:02:27.1]} 10... O-O {[%clk 0:02:18.4]} 11. h3 {[%clk 0:02:19.8]}
11... Bh5 {[%clk 0:02:18.6]} 12. d5 {[%clk 0:02:12.2]} 12... Nc5 {[%clk
0:02:15.5]} 13. O-O {[%clk 0:02:07.5]} 13... Bg6 {[%clk 0:01:52.1]} 14. Qc1
{[%clk 0:02:00]} 14... Nfe4 {[%clk 0:01:44.4]} 15. Nxe4 {[%clk 0:01:52.6]} 15...
Nxe4 {[%clk 0:01:44.9]} 16. dxc6 {[%clk 0:01:39.2]} 16... bxc6 {[%clk 0:01:45]}
17. Nd2 {[%clk 0:01:38.2]} 17... Nc5 {[%clk 0:01:33.3]} 18. Ba3 {[%clk
0:01:25.4]} 18... Ne6 {[%clk 0:01:30.7]} 19. Nb1 {[%clk 0:01:18.3]} 19... Rfd8
{[%clk 0:01:03.9]} 20. Nc3 {[%clk 0:01:17.6]} 20... Rab8 {[%clk 0:01:00.6]} 21.
Bd3 {[%clk 0:01:13.6]} 21... f5 {[%clk 0:00:59.8]} 22. c5 {[%clk 0:01:04.9]}
22... d5 {[%clk 0:00:57.4]} 23. Bb1 {[%clk 0:01:02.4]} 23... d4 {[%clk
0:00:45.1]} 24. Na4 {[%clk 0:01:01.6]} 24... Kh8 {[%clk 0:00:35.1]} 25. Bb2
{[%clk 0:01:01.3]} 25... Rb4 {[%clk 0:00:29.5]} 26. exd4 {[%clk 0:01:00]} 26...
Nxd4 {[%clk 0:00:29.9]} 27. Bxd4 {[%clk 0:00:59.8]} 27... Rbxd4 {[%clk
0:00:30.6]} 28. Rxd4 {[%clk 0:01:00.8]} 28... exd4 {[%clk 0:00:31.5]} 29. Re1
{[%clk 0:00:56.8]} 29... Bf6 {[%clk 0:00:32.3]} 30. Qd2 {[%clk 0:00:57]} 30...
d3 {[%clk 0:00:30.7]} 31. Rd1 {[%clk 0:00:46.2]} 31... f4 {[%clk 0:00:31]} 32.
Nb2 {[%clk 0:00:34.7]} 32... Qe5 {[%clk 0:00:28.7]} 33. Nc4 {[%clk 0:00:34.7]}
33... Qxc5 {[%clk 0:00:28.7]} 34. Qxa5 {[%clk 0:00:34.2]} 34... Qd4 {[%clk
0:00:26.5]} 35. Qb6 {[%clk 0:00:28.8]} 35... c5 {[%clk 0:00:25.1]} 36. b4 {[%clk
0:00:23.9]} 36... Qxc4 {[%clk 0:00:24.4]} 37. bxc5 {[%clk 0:00:24.3]} 37... Qd4
{[%clk 0:00:21.4]} 38. Qc7 {[%clk 0:00:20.4]} 38... Bf5 {[%clk 0:00:21.5]} 39.
c6 {[%clk 0:00:21.3]} 39... f3 {[%clk 0:00:22.3]} 40. g3 {[%clk 0:00:21.3]}
40... Bxh3 {[%clk 0:00:23]} 41. Qb7 {[%clk 0:00:21.3]} 41... Bc8 {[%clk
0:00:23.1]} 42. Qa6 {[%clk 0:00:14.9]} 42... Bxa6 {[%clk 0:00:22.9]} 0-1

[Event "*** Titled Tuesday 3|2 Blitz"]
[Site "Chess.com"]
[Date "2016.06.07"]
[Round "3"]
[White "champ1000"]
[Black "ZEN-22"]
[Result "1-0"]
[WhiteElo "2103"]
[BlackElo "2397"]
[TimeControl "180+2"]
[EndTime "17:34:38 PDT"]
[Termination "champ1000 won by resignation"]

1. e4 {[%clk 0:02:48.9]} 1... c5 {[%clk 0:03:00.9]} 2. Nf3 {[%clk 0:02:49.9]}
2... e6 {[%clk 0:03:02.4]} 3. d4 {[%clk 0:02:51]} 3... cxd4 {[%clk 0:03:04]} 4.
Nxd4 {[%clk 0:02:52.9]} 4... Nf6 {[%clk 0:03:05.6]} 5. Nc3 {[%clk 0:02:53.2]}
5... Bb4 {[%clk 0:03:06.1]} 6. Bd3 {[%clk 0:02:48.5]} 6... d5 {[%clk 0:03:06.3]}
7. exd5 {[%clk 0:02:44.7]} 7... Nxd5 {[%clk 0:03:05.1]} 8. Bd2 {[%clk
0:02:44.8]} 8... Nxc3 {[%clk 0:03:03.3]} 9. bxc3 {[%clk 0:02:45]} 9... Bc5
{[%clk 0:03:04.3]} 10. O-O {[%clk 0:02:43.9]} 10... Bxd4 {[%clk 0:03:03.4]} 11.
cxd4 {[%clk 0:02:44.5]} 11... Qxd4 {[%clk 0:03:03]} 12. Be3 {[%clk 0:02:28.7]}
12... Qe5 {[%clk 0:02:37.4]} 13. Bd4 {[%clk 0:01:48.7]} 13... Qd5 {[%clk
0:02:37.4]} 14. Qg4 {[%clk 0:01:31.7]} 14... Nc6 {[%clk 0:02:28.7]} 15. Be4
{[%clk 0:01:14]} 15... e5 {[%clk 0:01:05.7]} 16. Qxg7 {[%clk 0:01:13.2]} 16...
Qxe4 {[%clk 0:00:53.4]} 17. Qxh8+ {[%clk 0:00:58.1]} 17... Kd7 {[%clk
0:00:48.7]} 18. Rfe1 {[%clk 0:00:56]} 18... Qxd4 {[%clk 0:00:25.9]} 19. Rad1
{[%clk 0:00:55.4]} 19... Qxd1 {[%clk 0:00:27.4]} 20. Rxd1+ {[%clk 0:00:55.4]}
20... Ke7 {[%clk 0:00:29.3]} 21. h4 {[%clk 0:00:48.6]} 21... Rb8 {[%clk
0:00:27.9]} 22. Qxh7 {[%clk 0:00:39]} 22... Be6 {[%clk 0:00:21.4]} 23. h5 {[%clk
0:00:38.3]} 23... Rc8 {[%clk 0:00:17.2]} 24. Qg7 {[%clk 0:00:32.6]} 24... Nd4
{[%clk 0:00:12.3]} 25. Rxd4 {[%clk 0:00:20.9]} 25... exd4 {[%clk 0:00:12.8]} 26.
h6 {[%clk 0:00:22.3]} 26... Rxc2 {[%clk 0:00:11.2]} 27. h7 {[%clk 0:00:23.7]}
27... d3 {[%clk 0:00:09.3]} 28. h8=Q {[%clk 0:00:24.7]} 28... d2 {[%clk
0:00:08.7]} 29. Qf6+ {[%clk 0:00:25.4]} 29... Kd7 {[%clk 0:00:09.9]} 30. Qhd8+
{[%clk 0:00:26.5]} 30... Kc6 {[%clk 0:00:10.8]} 31. Qf3+ {[%clk 0:00:27.3]}
31... Kb5 {[%clk 0:00:09.5]} 32. Qxb7+ {[%clk 0:00:28.4]} 32... Kc4 {[%clk
0:00:09.5]} 33. Qdc7+ {[%clk 0:00:28]} 33... Kd3 {[%clk 0:00:10.4]} 34. Qg3+
{[%clk 0:00:28.7]} 34... Ke2 {[%clk 0:00:09.4]} 35. Qbf3+ {[%clk 0:00:29.2]}
35... Ke1 {[%clk 0:00:10.4]} 36. Qe3+ {[%clk 0:00:30.5]} 36... Kd1 {[%clk
0:00:11.5]} 37. f3 {[%clk 0:00:30.8]} 37... Kc1 {[%clk 0:00:11.6]} 38. Qgf2
{[%clk 0:00:30.7]} 38... Bxa2 {[%clk 0:00:11.6]} 39. Qfe1+ {[%clk 0:00:30.8]}
39... Kb2 {[%clk 0:00:10.4]} 40. Q1xd2 {[%clk 0:00:31.1]} 40... Be6 {[%clk
0:00:10.1]} 41. Qed4+ {[%clk 0:00:31.1]} 41... Kb1 {[%clk 0:00:10.7]} 42. Q4d3
{[%clk 0:00:30.8]} 42... Bb3 {[%clk 0:00:08.8]} 43. Qxb3+ {[%clk 0:00:31.5]}
43... Ka1 {[%clk 0:00:10.3]} 44. Qbxc2 {[%clk 0:00:31.2]} 1-0

[Event "*** Titled Tuesday 3|2 Blitz"]
[Site "Chess.com"]
[Date "2016.06.07"]
[Round "3"]
[White "ShimanovAlex"]
[Black "Dlugy"]
[Result "1/2-1/2"]
[WhiteElo "2647"]
[BlackElo "2604"]
[TimeControl "180+2"]
[EndTime "17:34:39 PDT"]
[Termination "Game drawn by agreement"]

1. d4 {[%clk 0:03:01.9]} 1... Nf6 {[%clk 0:02:59.5]} 2. Nf3 {[%clk 0:03:02.9]}
2... g6 {[%clk 0:03:00.9]} 3. Bg5 {[%clk 0:03:03.4]} 3... Bg7 {[%clk 0:03:02.3]}
4. Nbd2 {[%clk 0:03:04.3]} 4... O-O {[%clk 0:03:03.8]} 5. c3 {[%clk 0:03:05.4]}
5... d6 {[%clk 0:03:02.2]} 6. e4 {[%clk 0:03:06]} 6... c5 {[%clk 0:02:57.8]} 7.
dxc5 {[%clk 0:03:06.7]} 7... dxc5 {[%clk 0:02:59]} 8. Be2 {[%clk 0:03:08]} 8...
Nc6 {[%clk 0:03:00]} 9. O-O {[%clk 0:03:08.5]} 9... Qc7 {[%clk 0:03:00.6]} 10.
h3 {[%clk 0:03:09.4]} 10... Rd8 {[%clk 0:03:01.2]} 11. Qc2 {[%clk 0:03:10.1]}
11... b6 {[%clk 0:03:00.1]} 12. a4 {[%clk 0:03:09.4]} 12... Bb7 {[%clk
0:03:01.1]} 13. Rfe1 {[%clk 0:03:10.6]} 13... Nh5 {[%clk 0:02:56.7]} 14. Be3
{[%clk 0:03:11.2]} 14... Nf4 {[%clk 0:02:57.1]} 15. Bf1 {[%clk 0:03:12.5]} 15...
Ne5 {[%clk 0:02:53.9]} 16. Nxe5 {[%clk 0:03:11.8]} 16... Bxe5 {[%clk 0:02:54.9]}
17. a5 {[%clk 0:03:10.7]} 17... Ne6 {[%clk 0:02:45.2]} 18. Bc4 {[%clk
0:02:57.4]} 18... Nf4 {[%clk 0:02:20.9]} 19. Nf3 {[%clk 0:02:31.1]} 19... Bg7
{[%clk 0:02:21.9]} 20. Ng5 {[%clk 0:02:31.6]} 20... e6 {[%clk 0:02:22.5]} 21. g3
{[%clk 0:02:32.7]} 21... Nh5 {[%clk 0:02:23.4]} 22. Bf1 {[%clk 0:02:08.6]} 22...
h6 {[%clk 0:02:21]} 23. Nf3 {[%clk 0:02:09.1]} 23... Nf6 {[%clk 0:02:18.7]} 24.
Nd2 {[%clk 0:02:10]} 24... Nd7 {[%clk 0:02:13.9]} 25. Bf4 {[%clk 0:01:51.5]}
25... Ne5 {[%clk 0:02:09.3]} 26. Bg2 {[%clk 0:01:49]} 26... g5 {[%clk
0:02:05.6]} 27. Bxe5 {[%clk 0:01:49.6]} 27... Bxe5 {[%clk 0:02:06]} 28. Nc4
{[%clk 0:01:50.7]} 28... Ba6 {[%clk 0:01:55.1]} 29. Nxe5 {[%clk 0:01:38.3]}
29... Qxe5 {[%clk 0:01:55.5]} 30. axb6 {[%clk 0:01:39.5]} 30... axb6 {[%clk
0:01:56.3]} 31. Qb3 {[%clk 0:01:40.7]} 31... Qc7 {[%clk 0:01:48.2]} 32. Red1
{[%clk 0:01:36.3]} 32... Rxd1+ {[%clk 0:01:39.8]} 33. Qxd1 {[%clk 0:01:37.2]}
33... Bb7 {[%clk 0:01:33.9]} 34. Rxa8+ {[%clk 0:01:34.1]} 34... Bxa8 {[%clk
0:01:35.8]} 35. h4 {[%clk 0:01:31.9]} 35... Kg7 {[%clk 0:01:14.7]} 36. hxg5
{[%clk 0:01:29.7]} 36... hxg5 {[%clk 0:01:16.2]} 37. Qh5 {[%clk 0:01:30.8]}
37... Qe7 {[%clk 0:01:09.4]} 38. e5 {[%clk 0:01:30.4]} 38... Bxg2 {[%clk
0:01:09.5]} 39. Kxg2 {[%clk 0:01:32.3]} 39... f5 {[%clk 0:01:05.6]} 40. exf6+
{[%clk 0:01:25.8]} 40... Qxf6 {[%clk 0:01:06.6]} 41. Qf3 {[%clk 0:01:26.7]}
41... Qd8 {[%clk 0:00:49.6]} 42. Qe4 {[%clk 0:01:25.1]} 42... Kf6 {[%clk
0:00:44.1]} 43. Kf3 {[%clk 0:01:18.5]} 43... Qd1+ {[%clk 0:00:44]} 44. Qe2
{[%clk 0:01:15.6]} 44... Qd5+ {[%clk 0:00:37.9]} 45. Ke3 {[%clk 0:01:15.2]}
45... Qe5+ {[%clk 0:00:33.2]} 46. Kd2 {[%clk 0:01:15.6]} 46... Qd5+ {[%clk
0:00:32.2]} 47. Kc2 {[%clk 0:01:16.7]} 47... c4 {[%clk 0:00:29.4]} 48. Qe3
{[%clk 0:01:14.7]} 48... b5 {[%clk 0:00:29.7]} 49. f3 {[%clk 0:01:09.5]} 49...
Qf5+ {[%clk 0:00:30.1]} 50. Kc1 {[%clk 0:01:09.1]} 50... Qd5 {[%clk 0:00:31.7]}
51. g4 {[%clk 0:01:09.7]} 51... Qe5 {[%clk 0:00:29.8]} 52. Kd2 {[%clk
0:01:10.4]} 52... Qxe3+ {[%clk 0:00:29.1]} 53. Kxe3 {[%clk 0:01:11.6]} 53... e5
{[%clk 0:00:23.2]} 54. Kd2 {[%clk 0:01:06.4]} 54... Ke7 {[%clk 0:00:24.2]} 55.
Ke1 {[%clk 0:01:07.2]} 55... Kd6 {[%clk 0:00:25.3]} 56. Kf2 {[%clk 0:01:08.4]}
56... Kd5 {[%clk 0:00:26.2]} 57. Ke3 {[%clk 0:01:09.6]} 57... Kd6 {[%clk
0:00:27]} 58. Kd2 {[%clk 0:01:10.7]} 58... Kd5 {[%clk 0:00:27.6]} 59. Ke3 {[%clk
0:01:09]} 59... Kd6 {[%clk 0:00:28.7]} 1/2-1/2

[Event "*** Titled Tuesday 3|2 Blitz"]
[Site "Chess.com"]
[Date "2016.06.07"]
[Round "3"]
[White "1random"]
[Black "sandropozo"]
[Result "0-1"]
[WhiteElo "2122"]
[BlackElo "2413"]
[TimeControl "180+2"]
[EndTime "17:35:12 PDT"]
[Termination "sandropozo won by resignation"]

1. e4 {[%clk 0:03:01.9]} 1... e6 {[%clk 0:03:00.8]} 2. d3 {[%clk 0:02:59]} 2...
d5 {[%clk 0:03:02.1]} 3. Nd2 {[%clk 0:02:52.6]} 3... Nc6 {[%clk 0:03:03.5]} 4.
Ngf3 {[%clk 0:02:51.7]} 4... Nf6 {[%clk 0:03:04.6]} 5. c3 {[%clk 0:02:44.2]}
5... a5 {[%clk 0:02:55.3]} 6. Be2 {[%clk 0:02:44.2]} 6... e5 {[%clk 0:02:54.8]}
7. O-O {[%clk 0:02:43.4]} 7... Bd6 {[%clk 0:02:54.8]} 8. b3 {[%clk 0:02:38]}
8... O-O {[%clk 0:02:55]} 9. a3 {[%clk 0:02:38.6]} 9... Re8 {[%clk 0:02:52.4]}
10. Bb2 {[%clk 0:02:37.5]} 10... Ne7 {[%clk 0:02:40.5]} 11. b4 {[%clk
0:02:37.4]} 11... Ng6 {[%clk 0:02:28]} 12. g3 {[%clk 0:02:12.8]} 12... c6 {[%clk
0:02:26.7]} 13. Re1 {[%clk 0:01:59.1]} 13... h6 {[%clk 0:02:23.3]} 14. Bf1
{[%clk 0:01:58.1]} 14... Bg4 {[%clk 0:02:21.6]} 15. h3 {[%clk 0:01:55.3]} 15...
Bd7 {[%clk 0:02:17.5]} 16. Bg2 {[%clk 0:01:56.1]} 16... Nh7 {[%clk 0:02:08]} 17.
Kh2 {[%clk 0:01:49.1]} 17... Qf6 {[%clk 0:02:06.5]} 18. exd5 {[%clk 0:01:30.2]}
18... cxd5 {[%clk 0:02:06]} 19. c4 {[%clk 0:01:31.5]} 19... axb4 {[%clk
0:01:46.5]} 20. axb4 {[%clk 0:01:30.5]} 20... Bxb4 {[%clk 0:01:37.5]} 21. Rxa8
{[%clk 0:01:21]} 21... Rxa8 {[%clk 0:01:38.1]} 22. Nxe5 {[%clk 0:01:20.3]} 22...
Nxe5 {[%clk 0:01:35.3]} 23. Bxe5 {[%clk 0:01:20.1]} 23... Qxf2 {[%clk
0:01:36.3]} 24. Re2 {[%clk 0:01:17.5]} 24... Qf5 {[%clk 0:01:29.9]} 25. cxd5
{[%clk 0:01:02.9]} 25... Ng5 {[%clk 0:01:25.7]} 26. Qf1 {[%clk 0:00:52.2]} 26...
Qxd3 {[%clk 0:01:06.1]} 27. Nf3 {[%clk 0:00:34]} 27... Bb5 {[%clk 0:00:59.9]}
28. Rf2 {[%clk 0:00:30.9]} 28... Qxf1 {[%clk 0:00:46.3]} 29. Bxf1 {[%clk
0:00:30.4]} 29... Bc5 {[%clk 0:00:42.4]} 30. Nd4 {[%clk 0:00:22.9]} 30... Bxf1
{[%clk 0:00:39.6]} 31. Rxf1 {[%clk 0:00:24.8]} 31... Ra2+ {[%clk 0:00:37.9]} 32.
Kh1 {[%clk 0:00:24.3]} 32... f6 {[%clk 0:00:37.8]} 33. d6 {[%clk 0:00:20.7]}
33... fxe5 {[%clk 0:00:34.5]} 34. d7 {[%clk 0:00:21.6]} 34... Ra8 {[%clk
0:00:33.7]} 35. h4 {[%clk 0:00:21.1]} 35... exd4 {[%clk 0:00:32.1]} 36. hxg5
{[%clk 0:00:21.8]} 36... Rd8 {[%clk 0:00:31.3]} 37. Rc1 {[%clk 0:00:22]} 37...
b6 {[%clk 0:00:31.2]} 38. gxh6 {[%clk 0:00:21.9]} 38... gxh6 {[%clk 0:00:31.7]}
39. Kg2 {[%clk 0:00:22.5]} 39... Rxd7 {[%clk 0:00:32.6]} 40. g4 {[%clk
0:00:24.4]} 40... d3 {[%clk 0:00:32.8]} 41. g5 {[%clk 0:00:26.3]} 41... d2
{[%clk 0:00:33.1]} 42. Rd1 {[%clk 0:00:27.8]} 42... hxg5 {[%clk 0:00:33.5]} 43.
Kh3 {[%clk 0:00:28.8]} 43... Kf7 {[%clk 0:00:34.2]} 44. Kg4 {[%clk 0:00:30.1]}
44... Kg6 {[%clk 0:00:35.6]} 45. Kh3 {[%clk 0:00:29.9]} 45... Rd4 {[%clk
0:00:36.5]} 46. Kg3 {[%clk 0:00:27.8]} 46... Bb4 {[%clk 0:00:37.5]} 47. Kh3
{[%clk 0:00:28.9]} 47... g4+ {[%clk 0:00:37.5]} 48. Kh4 {[%clk 0:00:30.1]} 48...
Be7+ {[%clk 0:00:38.6]} 49. Kg3 {[%clk 0:00:31.6]} 49... Kg5 {[%clk 0:00:40.1]}
50. Kh2 {[%clk 0:00:33.2]} 50... Bd6+ {[%clk 0:00:41.1]} 51. Kg2 {[%clk
0:00:34.3]} 51... Rd3 {[%clk 0:00:42]} 52. Kh1 {[%clk 0:00:35.3]} 52... Kh4
{[%clk 0:00:41.8]} 53. Kg2 {[%clk 0:00:35.8]} 53... Bf4 {[%clk 0:00:41.1]} 54.
Kh1 {[%clk 0:00:37]} 54... Rf3 {[%clk 0:00:42.1]} 55. Kg2 {[%clk 0:00:37.8]}
55... Re3 {[%clk 0:00:41.6]} 56. Rh1+ {[%clk 0:00:37.3]} 56... Kg5 {[%clk
0:00:41.9]} 57. Rb1 {[%clk 0:00:24.4]} 57... Re2+ {[%clk 0:00:41.6]} 58. Kf1
{[%clk 0:00:21.4]} 58... Re1+ {[%clk 0:00:42.7]} 59. Kf2 {[%clk 0:00:22.1]}
59... Rxb1 {[%clk 0:00:42.8]} 60. Kg2 {[%clk 0:00:24]} 0-1

[Event "*** Titled Tuesday 3|2 Blitz"]
[Site "Chess.com"]
[Date "2016.06.07"]
[Round "3"]
[White "Silent_Terror"]
[Black "GianmarcoVaR"]
[Result "0-1"]
[WhiteElo "2496"]
[BlackElo "2338"]
[TimeControl "180+2"]
[EndTime "17:35:14 PDT"]
[Termination "GianmarcoVaR won by resignation"]

1. e4 {[%clk 0:03:01.9]} 1... c5 {[%clk 0:02:53.5]} 2. Nf3 {[%clk 0:03:02.3]}
2... d6 {[%clk 0:02:55]} 3. d4 {[%clk 0:03:03.4]} 3... cxd4 {[%clk 0:02:56.9]}
4. Nxd4 {[%clk 0:03:04.6]} 4... Nf6 {[%clk 0:02:58.5]} 5. Nc3 {[%clk 0:03:05.9]}
5... a6 {[%clk 0:02:59.4]} 6. Be2 {[%clk 0:03:07.3]} 6... e5 {[%clk 0:03:00.1]}
7. Nb3 {[%clk 0:03:08.6]} 7... Be7 {[%clk 0:03:01.3]} 8. Be3 {[%clk 0:03:09.9]}
8... Be6 {[%clk 0:03:00.4]} 9. Qd3 {[%clk 0:03:10.7]} 9... Nbd7 {[%clk
0:02:54.3]} 10. Nd5 {[%clk 0:03:08.5]} 10... O-O {[%clk 0:02:47.9]} 11. c4
{[%clk 0:03:06.4]} 11... b5 {[%clk 0:02:47.1]} 12. Nd2 {[%clk 0:02:52.9]} 12...
Rb8 {[%clk 0:02:21.1]} 13. O-O {[%clk 0:02:36.2]} 13... b4 {[%clk 0:02:13.7]}
14. b3 {[%clk 0:02:29.7]} 14... Nc5 {[%clk 0:01:54]} 15. Bxc5 {[%clk 0:02:24.3]}
15... dxc5 {[%clk 0:01:55.9]} 16. Rfd1 {[%clk 0:02:15.8]} 16... Ne8 {[%clk
0:01:49]} 17. Nf1 {[%clk 0:02:12.3]} 17... Bxd5 {[%clk 0:01:49.4]} 18. Qxd5
{[%clk 0:01:59.6]} 18... Qc7 {[%clk 0:01:50.4]} 19. Qd3 {[%clk 0:01:54.3]} 19...
Bg5 {[%clk 0:01:50.2]} 20. Bg4 {[%clk 0:01:35.6]} 20... Nf6 {[%clk 0:01:45.6]}
21. Bf3 {[%clk 0:01:34]} 21... Rbd8 {[%clk 0:01:44.4]} 22. Qe2 {[%clk
0:01:34.8]} 22... Rd4 {[%clk 0:01:45.1]} 23. Ng3 {[%clk 0:01:33.5]} 23... g6
{[%clk 0:01:45.2]} 24. Qc2 {[%clk 0:01:34]} 24... Rfd8 {[%clk 0:01:45]} 25. Ne2
{[%clk 0:01:33.4]} 25... Rd2 {[%clk 0:01:45.4]} 26. Rxd2 {[%clk 0:01:28.4]}
26... Rxd2 {[%clk 0:01:45.5]} 27. Qb1 {[%clk 0:01:29.9]} 27... Qd6 {[%clk
0:01:39]} 28. Qe1 {[%clk 0:01:25.6]} 28... Qd3 {[%clk 0:01:32.2]} 29. Ng3 {[%clk
0:01:26.5]} 29... Qd4 {[%clk 0:01:11.9]} 30. Rd1 {[%clk 0:01:13.1]} 30... a5
{[%clk 0:01:10.8]} 31. Rxd2 {[%clk 0:01:12.1]} 31... Bxd2 {[%clk 0:01:11.7]} 32.
Qd1 {[%clk 0:01:08.9]} 32... h5 {[%clk 0:01:10.1]} 33. Nf1 {[%clk 0:01:08.9]}
33... Bf4 {[%clk 0:01:04.2]} 34. Qe2 {[%clk 0:01:08.6]} 34... Ne8 {[%clk
0:01:02.4]} 35. g3 {[%clk 0:01:09.2]} 35... Bh6 {[%clk 0:01:02.8]} 36. Qd1
{[%clk 0:00:52.6]} 36... Nd6 {[%clk 0:01:01.5]} 37. Qe2 {[%clk 0:00:45.5]} 37...
a4 {[%clk 0:01:01.3]} 38. Qc2 {[%clk 0:00:35.2]} 38... a3 {[%clk 0:00:58.3]} 39.
h4 {[%clk 0:00:32.4]} 39... Nc8 {[%clk 0:00:57.2]} 40. Qd1 {[%clk 0:00:30.1]}
40... Ne7 {[%clk 0:00:57.9]} 41. Qxd4 {[%clk 0:00:24.7]} 41... cxd4 {[%clk
0:00:58.4]} 42. Be2 {[%clk 0:00:18.4]} 42... Kf8 {[%clk 0:00:56.7]} 43. Nh2
{[%clk 0:00:19.7]} 43... Nc6 {[%clk 0:00:45.1]} 44. Nf3 {[%clk 0:00:19.4]} 44...
f6 {[%clk 0:00:45.4]} 45. Ne1 {[%clk 0:00:20.3]} 45... Na5 {[%clk 0:00:46.4]}
46. Nc2 {[%clk 0:00:17.4]} 46... Bd2 {[%clk 0:00:44.7]} 47. Bd3 {[%clk
0:00:17.2]} 47... Ke7 {[%clk 0:00:44.3]} 48. Kf1 {[%clk 0:00:18.7]} 48... Ke6
{[%clk 0:00:39.3]} 49. Ke2 {[%clk 0:00:19.7]} 49... Bc3 {[%clk 0:00:38.3]} 50.
f3 {[%clk 0:00:20.6]} 50... Nb7 {[%clk 0:00:37.8]} 51. Kd1 {[%clk 0:00:15.4]}
51... Nc5 {[%clk 0:00:37.9]} 52. Bf1 {[%clk 0:00:16.9]} 52... f5 {[%clk
0:00:34.4]} 53. exf5+ {[%clk 0:00:14.6]} 53... gxf5 {[%clk 0:00:35.5]} 54. Ne1
{[%clk 0:00:11]} 54... Bxe1 {[%clk 0:00:35]} 55. Kxe1 {[%clk 0:00:12.9]} 55...
Nxb3 {[%clk 0:00:36.2]} 0-1